bitfinex-derivatives/quotes_BNBF0:USTF0_20250401
["timestamp","ask_amount","ask_price","bid_price","bid_amount"]
[1743506866827,1.3409046,608.38,607.92,0.716]
[1743506867027,0.28615715,608.39,607.92,0.716]
[1743506867230,1.34096875,608.38,607.92,0.716]
[1743506867430,0.764,608.43,607.92,0.716]
[1743506867630,1.34071721,608.42,607.92,0.716]
[1743506867830,1.34071721,608.41,607.92,0.716]
[1743506868031,1.34071721,608.4,607.92,0.716]
[1743506868227,1.34071721,608.39,607.92,0.716]
[1743506868429,1.631,608.43,607.92,0.716]
[1743506868730,0.28615832,608.38,607.92,0.716]
[1743506870430,1.34007977,608.42,607.92,0.716]
[1743506870633,1.34007977,608.41,607.92,0.716]
[1743506870831,1.34007977,608.4,607.92,0.716]
[1743506871034,1.34007977,608.42,607.92,0.716]
[1743506871235,1.34007977,608.41,607.92,0.716]
[1743506871436,0.28615479,608.41,607.92,0.716]
[1743506871630,1.34007977,608.4,607.92,0.716]
[1743506871834,1.34007977,608.39,607.92,0.716]
[1743506872032,1.34007977,608.38,607.92,0.716]
[1743506872230,1.34007977,608.37,607.92,0.716]
[1743506872436,1.34007977,608.36,607.92,0.716]
[1743506872637,1.34007977,608.35,607.92,0.716]
[1743506872933,1.34007977,608.34,607.92,0.716]
[1743506873138,0.28615479,608.41,607.92,0.716]
[1743506873342,1.33926037,608.4,607.92,0.716]
[1743506873641,1.33926037,608.39,607.92,0.716]
[1743506873839,1.33926037,608.38,607.92,0.716]
[1743506874032,1.33926037,608.37,607.92,0.716]
[1743506874236,1.33926037,608.36,607.92,0.716]
[1743506874434,1.33926037,608.35,607.92,0.716]
[1743506874634,0.28616068,608.36,607.92,0.716]
[1743506874835,1.33895786,608.35,607.92,0.716]
[1743506875033,1.33892258,608.34,607.92,0.716]
[1743506875242,0.28616068,608.36,607.92,0.716]
[1743506875441,1.33869664,608.35,607.92,0.716]
[1743506875733,0.28616068,608.36,607.92,0.716]
[1743506875734,1.33869664,608.34,607.92,0.716]
[1743506875937,0.28616068,608.36,607.92,0.716]
[1743506876138,1.33869673,608.35,607.92,0.716]
[1743506876338,1.33869673,608.34,607.92,0.716]
[1743506876638,0.28616303,608.34,607.92,0.716]
[1743506879339,1.07,608.42,607.92,0.716]
[1743506879538,1.33868008,608.41,607.92,0.716]
[1743506879739,1.33868008,608.4,607.92,0.716]
[1743506879940,1.33868008,608.39,607.92,0.716]
[1743506880139,1.33868008,608.38,607.92,0.716]
[1743506880339,1.07,608.42,607.92,0.716]
[1743506880340,1.33862332,608.37,607.92,0.716]
[1743506880541,1.33862332,608.36,607.92,0.716]
[1743506880738,1.33862332,608.35,607.92,0.716]
[1743506880939,0.28615715,608.39,607.92,0.716]
[1743506881140,1.33864171,608.38,607.92,0.716]
[1743506881340,1.33864171,608.37,607.92,0.716]
[1743506881541,1.33864171,608.36,607.92,0.716]
[1743506881742,0.28615715,608.39,607.92,0.716]
[1743506881942,1.33856221,608.38,607.92,0.716]
[1743506882143,1.33856221,608.37,607.92,0.716]
[1743506882343,1.33856221,608.36,606.41,2.49922176]
[1743506882543,1.07,608.42,606.42,0.27686438]
[1743506882743,0.28616068,608.36,606.43,0.27686438]
[1743506882944,0.28616068,608.36,606.45,0.32978811]
[1743506883244,0.28616068,608.36,606.46,0.27686438]
[1743506883444,0.28616068,608.36,606.45,0.32978811]
[1743506883639,1.33847327,608.35,606.46,0.27686622]
[1743506883845,1.33847327,608.34,606.48,0.32977179]
[1743506884041,1.33847327,608.33,606.49,0.27686622]
[1743506884242,1.33847327,608.32,606.51,0.32975548]
[1743506884544,1.33847327,608.31,606.52,0.27686622]
[1743506884741,0.28616068,608.36,606.54,0.32973917]
[1743506885041,1.33835096,608.35,606.55,0.27686622]
[1743506885245,1.33835096,608.34,606.57,0.32972286]
[1743506885545,1.33835096,608.33,606.58,0.27686622]
[1743506885741,1.33835096,608.32,606.6,0.32970656]
[1743506885948,1.33811507,608.31,606.61,0.27686622]
[1743506886146,1.33811507,608.3,606.63,0.32969025]
[1743506886346,0.9,608.33,606.64,0.27686622]
[1743506886543,1.33795448,608.32,606.66,0.32967395]
[1743506886739,0.9,608.33,606.66,0.32967395]
[1743506886740,1.33795448,608.31,606.66,0.32967395]
[1743506886944,0.9,608.33,606.67,0.27686622]
[1743506887143,0.9,608.33,606.69,0.32965765]
[1743506887345,0.9,608.33,606.7,0.27686622]
[1743506887545,0.9,608.33,606.72,0.32964135]
[1743506887747,0.9,608.33,606.73,0.27686622]
[1743506887944,0.9,608.33,606.75,0.32962505]
[1743506888140,0.9,608.33,606.76,0.27686622]
[1743506888345,0.9,608.33,606.78,0.32960875]
[1743506888647,0.9,608.33,606.79,0.27686622]
[1743506888847,0.9,608.33,606.81,0.32959245]
[1743506889046,1.561,608.33,606.82,0.27686622]
[1743506889447,1.561,608.33,606.84,0.32957616]
[1743506889649,0.28632196,608.32,606.85,0.27686622]
[1743506889843,1.33795448,608.31,606.87,0.32955987]
[1743506890044,1.33795448,608.31,606.88,0.27697036]
[1743506890243,0.28632196,608.32,606.9,0.32954358]
[1743506890446,0.28632196,608.32,606.91,0.27697036]
[1743506890646,0.28632196,608.32,606.93,0.32952729]
[1743506890842,1.33795448,608.31,606.94,0.27697036]
[1743506891047,1.33795448,608.3,606.96,0.329511]
[1743506891245,1.33795448,608.31,606.97,0.27697036]
[1743506891449,1.33795448,608.3,606.97,0.27697036]
[1743506891642,1.33795448,608.31,606.97,0.27697036]
[1743506891848,1.33795448,608.3,606.97,0.27697036]
[1743506892046,1.33795448,608.29,606.97,0.27697036]
[1743506892249,1.33795448,608.31,606.97,0.27697036]
[1743506892453,1.33795448,608.3,606.97,0.27697036]
[1743506892650,1.33795448,608.29,606.99,0.32949471]
[1743506892851,1.33795448,608.28,607.0,0.27697036]
[1743506893048,1.33665291,608.31,607.02,0.32947843]
[1743506893249,1.33665291,608.3,607.03,0.27697036]
[1743506893446,1.33665291,608.31,607.05,0.32946215]
[1743506893651,1.62297487,608.32,607.06,0.27697036]
[1743506893953,1.62297487,608.32,607.08,0.32944587]
[1743506894146,1.62297487,608.32,607.09,0.27697036]
[1743506894345,1.33665291,608.32,607.1,0.32943501]
[1743506894545,1.33665291,608.32,607.11,0.27697036]
[1743506894751,1.561,608.33,607.12,0.32942416]
[1743506895050,1.561,608.33,607.13,0.27697036]
[1743506895253,1.33665291,608.32,607.14,0.32941331]
[1743506895454,1.33665291,608.32,607.15,0.27697036]
[1743506895654,1.33665291,608.31,607.16,0.32940246]
[1743506895852,0.28631371,608.32,607.16,0.32940246]
[1743506895853,1.33665291,608.3,607.17,0.27697036]
[1743506896053,1.33665291,608.29,607.17,0.27697036]
[1743506896250,1.33665291,608.28,607.18,0.32939161]
[1743506896555,1.33665291,608.27,607.19,0.27697036]
[1743506896853,1.33665291,608.26,607.19,0.27697036]
[1743506897054,1.33665291,608.25,607.19,0.27697036]
[1743506897254,1.33665291,608.31,607.19,0.27697036]
[1743506897554,1.33665291,608.3,607.19,0.27697036]
[1743506897753,1.33665291,608.29,607.19,0.27697036]
[1743506897949,1.33665291,608.28,607.19,0.27697036]
[1743506898254,1.33665291,608.27,607.19,0.27697036]
[1743506898457,1.33665291,608.26,607.19,0.27697036]
[1743506898658,1.33665291,608.25,607.19,0.27697036]
[1743506898950,1.33665291,608.26,607.19,0.27697036]
[1743506899156,1.33665291,608.25,607.19,0.27697036]
[1743506899356,1.33665291,608.26,607.19,0.27697036]
[1743506899554,1.33665291,608.25,607.19,0.27697036]
[1743506899755,1.33665291,608.26,607.19,0.27697036]
[1743506899954,0.28633845,608.27,607.19,0.27697036]
[1743506899955,1.33665291,608.25,607.19,0.27697036]
[1743506900152,1.33665291,608.26,607.19,0.27697036]
[1743506900351,1.33665291,608.25,607.19,0.27697036]
[1743506900553,0.924,608.29,607.19,0.27697036]
[1743506900554,1.33665291,608.28,607.19,0.27697036]
[1743506900754,1.33665291,608.27,607.19,0.27697036]
[1743506901052,1.33665291,608.26,607.19,0.27697036]
[1743506901254,1.33665291,608.25,607.19,0.27697036]
[1743506901556,1.33665291,608.24,607.19,0.27697036]
[1743506901750,0.831,608.27,607.19,0.27697036]
[1743506901751,1.33665291,608.23,607.19,0.27697036]
[1743506901955,1.33665291,608.22,607.19,0.27697036]
[1743506902150,1.33665291,608.21,607.19,0.27697036]
[1743506902351,1.33665291,608.2,607.19,0.27697036]
[1743506902550,1.33665291,608.19,607.19,0.27697036]
[1743506902754,1.33665291,608.18,607.2,0.27703184]
[1743506902951,1.33665291,608.17,607.18,0.32939161]
[1743506903154,1.33665291,608.16,607.18,0.32939161]
[1743506903357,1.33665291,608.15,607.18,0.32939161]
[1743506903558,1.33665291,608.14,607.19,0.27706098]
[1743506903765,1.33665291,608.13,607.19,0.27706098]
[1743506903960,1.33665291,608.12,607.19,0.27706098]
[1743506904259,1.33665291,608.11,607.19,0.27706098]
[1743506904457,1.33584714,608.1,607.19,0.27706098]
[1743506904653,1.33584714,608.09,607.19,0.27706098]
[1743506904858,1.33584714,608.08,607.19,0.27706098]
[1743506905052,0.778,608.08,607.19,0.27706098]
[1743506905258,1.33584714,608.07,607.19,0.27706098]
[1743506905457,0.778,608.08,607.19,0.27706098]
[1743506905658,1.33584714,608.07,607.19,0.27706098]
[1743506906257,0.778,608.08,607.19,0.27706098]
[1743506906660,0.778,608.08,607.18,0.32939161]
[1743506906960,0.28634787,608.07,607.18,0.32939161]
[1743506907658,0.28634787,608.07,607.19,0.27701542]
[1743506908059,0.28634787,608.07,607.2,0.32938076]
[1743506908359,0.28634787,608.07,607.21,0.27701542]
[1743506908653,0.28634787,608.07,607.22,0.32936991]
[1743506909153,0.28634787,608.07,607.23,0.27701909]
[1743506909356,0.778,608.08,607.23,0.27701909]
[1743506910761,0.28636908,608.07,607.24,0.894]
[1743506912355,0.778,608.08,607.24,0.894]
[1743506913156,0.778,608.08,607.25,0.27702617]
[1743506913558,0.28635494,608.07,607.25,0.27702617]
[1743506913955,1.11435494,608.07,607.24,0.894]
[1743506914154,1.11435494,608.07,607.25,0.27704136]
[1743506914359,1.11435494,608.07,607.24,0.894]
[1743506914660,1.11435494,608.07,607.25,0.27703137]
[1743506915252,1.11435494,608.07,607.24,0.894]
[1743506915458,0.828,608.07,607.24,0.894]
[1743506916262,1.62422822,608.06,607.24,0.894]
[1743506916557,1.33786503,608.05,607.25,0.27704633]
[1743506916757,1.33786503,608.04,607.25,0.27704633]
[1743506917057,1.33786503,608.03,607.25,0.27704633]
[1743506917262,1.33786503,608.02,607.25,0.27704633]
[1743506917463,0.28636319,608.06,607.25,0.27704633]
[1743506917464,1.33786503,608.01,607.25,0.27704633]
[1743506917663,0.28636319,608.06,607.24,0.894]
[1743506917855,0.28636319,608.06,607.25,0.60634966]
[1743506918063,0.28636319,608.06,607.26,0.60634423]
[1743506918260,0.28636319,608.06,607.27,0.60633881]
[1743506918462,0.828,608.07,607.28,0.60633339]
[1743506918659,0.28632078,608.05,607.29,0.60632797]
[1743506918861,0.28632078,608.05,607.3,0.60632254]
[1743506919062,0.28632078,608.05,607.31,0.27699602]
[1743506919964,0.687,608.04,607.31,0.27699602]
[1743506920264,0.687,608.04,607.32,0.32931568]
[1743506920464,0.687,608.04,607.33,0.27699602]
[1743506920666,0.687,608.04,607.34,0.32930483]
[1743506920862,0.687,608.04,607.35,0.27699602]
[1743506921059,0.687,608.04,607.36,0.32929399]
[1743506921263,0.687,608.04,607.37,0.27699602]
[1743506921759,0.687,608.04,607.38,0.32928315]
[1743506921960,0.687,608.04,607.39,0.27699602]
[1743506922365,0.687,608.04,607.4,0.3292723]
[1743506922560,0.813,608.03,607.41,0.27699602]
[1743506922963,0.813,608.03,607.42,0.32926146]
[1743506923266,0.813,608.03,607.43,0.27699602]
[1743506923466,0.813,608.03,607.44,0.32925062]
[1743506923663,0.813,608.03,607.45,0.27699602]
[1743506924265,0.813,608.03,607.46,0.32923978]
[1743506924469,0.813,608.03,607.47,0.27699602]
[1743506925065,0.813,608.03,607.48,0.27689638]
[1743506925268,0.813,608.03,607.47,0.27689638]
[1743506925468,0.813,608.03,607.48,0.27689638]
[1743506925668,0.813,608.03,607.49,0.27689638]
[1743506925864,0.813,608.03,607.47,0.27689638]
[1743506926170,0.813,608.03,607.48,0.60612532]
[1743506926465,0.813,608.03,607.49,0.32922352]
[1743506926671,0.813,608.03,607.5,0.27689638]
[1743506926971,0.813,608.03,607.51,0.32921268]
[1743506927566,0.813,608.03,607.52,0.27683854]
[1743506928072,0.813,608.03,607.51,0.32921268]
[1743506928265,0.813,608.03,607.52,0.27685031]
[1743506928866,0.813,608.03,607.53,0.32920185]
[1743506929073,0.813,608.03,607.54,0.27685334]
[1743506932789,0.813,608.03,607.53,0.32920185]
[1743506933675,0.813,608.03,607.54,0.27687362]
[1743506935178,0.813,608.03,607.53,0.32920185]
[1743506937478,0.28627603,608.02,607.53,0.32920185]
[1743506939276,0.28627603,608.02,607.54,0.27689473]
[1743506939477,1.684,608.03,607.55,0.27689925]
[1743506939675,1.684,608.03,607.56,0.27689925]
[1743506939878,1.684,608.03,607.57,0.27689925]
[1743506940181,1.684,608.03,607.58,0.27689925]
[1743506940378,1.684,608.03,607.54,0.27689925]
[1743506940574,1.684,608.03,607.55,0.27689925]
[1743506940780,1.684,608.03,607.54,0.27689925]
[1743506940977,1.684,608.03,607.55,0.27689925]
[1743506941180,1.684,608.03,607.56,0.27689925]
[1743506941376,1.684,608.03,607.54,0.27689925]
[1743506941576,1.684,608.03,607.55,0.27689925]
[1743506941881,1.684,608.03,607.56,0.27689925]
[1743506942076,1.684,608.03,607.53,0.32920185]
[1743506942281,1.684,608.03,607.54,0.27683839]
[1743506943375,1.684,608.03,607.55,0.32919101]
[1743506943577,1.684,608.03,607.56,0.27683839]
[1743506943881,1.684,608.03,607.57,0.32918017]
[1743506944084,1.684,608.03,607.58,0.27683839]
[1743506944382,1.684,608.03,607.59,0.32916934]
[1743506944583,1.684,608.03,607.6,0.27683839]
[1743506946080,1.684,608.03,607.61,0.3291585]
[1743506946280,1.684,608.03,607.62,0.27683839]
[1743506946485,1.684,608.03,607.63,0.27678976]
[1743506946881,1.684,608.03,607.62,0.32915308]
[1743506947178,1.684,608.03,607.63,0.27677876]
[1743506948582,1.684,608.03,607.64,0.27677334]
[1743506949587,0.871,608.03,607.64,0.27677334]
[1743506951889,0.871,608.03,607.65,0.2767771]
[1743506952195,0.871,608.03,607.66,0.2767771]
[1743506952397,0.871,608.03,607.64,0.2767771]
[1743506952601,0.871,608.03,607.65,0.2767771]
[1743506952897,0.871,608.03,607.66,0.2767771]
[1743506953097,0.871,608.03,607.67,0.2767771]
[1743506953292,0.871,608.03,607.64,0.2767771]
[1743506953491,0.871,608.03,607.63,0.32914767]
[1743506953492,0.871,608.03,607.65,0.27678283]
[1743506953694,0.871,608.03,607.66,0.27678283]
[1743506953995,0.871,608.03,607.67,0.27678283]
[1743506954192,0.871,608.03,607.68,0.27678283]
[1743506954396,0.871,608.03,607.69,0.27678283]
[1743506954596,0.871,608.03,607.7,0.27678283]
[1743506954794,0.871,608.03,607.63,0.32914767]
[1743506954795,0.871,608.03,607.71,0.27678283]
[1743506954997,0.871,608.03,607.63,0.32914767]
[1743506955196,0.871,608.03,607.64,0.27678072]
[1743506956601,0.871,608.03,607.64,0.60592297]
[1743506956900,0.871,608.03,607.65,0.27678072]
[1743506958302,0.871,608.03,607.66,0.27678075]
[1743506958600,0.871,608.03,607.67,0.27678075]
[1743506958801,0.871,608.03,607.68,0.27678075]
[1743506959001,0.871,608.03,607.69,0.27678075]
[1743506959196,0.871,608.03,607.7,0.27678075]
[1743506959398,0.871,608.03,607.71,0.27678075]
[1743506959602,0.871,608.03,607.65,0.27678075]
[1743506959898,0.871,608.03,607.65,0.60591758]
[1743506960103,0.871,608.03,607.66,0.27678075]
[1743506962708,0.871,608.03,607.67,0.329126]
[1743506963002,0.871,608.03,607.68,0.27678075]
[1743506963201,0.871,608.03,607.69,0.32911517]
[1743506963403,0.871,608.03,607.7,0.27678075]
[1743506963604,0.871,608.03,607.71,0.32910434]
[1743506963804,0.871,608.03,607.72,0.27678075]
[1743506964006,0.871,608.03,607.73,0.32909351]
[1743506964206,0.871,608.03,607.74,0.27678075]
[1743506964402,0.871,608.03,607.75,0.32908268]
[1743506964606,0.871,608.03,607.76,0.27678075]
[1743506964808,0.871,608.03,607.77,0.32907185]
[1743506965005,0.871,608.03,607.78,0.27678075]
[1743506965507,0.813,608.14,607.78,0.27678075]
[1743506967806,0.684,608.16,607.78,0.27678075]
[1743506969409,0.684,608.16,607.79,0.27675403]
[1743506969709,0.684,608.16,607.8,0.27675403]
[1743506969910,0.684,608.16,607.78,0.27675403]
[1743506970105,0.684,608.16,607.79,0.27675403]
[1743506970305,0.684,608.16,607.78,0.27675403]
[1743506971009,0.684,608.16,607.79,0.27675595]
[1743506971200,0.684,608.16,607.78,0.27675595]
[1743506971401,0.684,608.16,607.79,0.27675595]
[1743506971608,0.684,608.16,607.78,0.27675595]
[1743506971910,0.684,608.16,607.79,0.27675595]
[1743506972208,0.684,608.16,607.8,0.27675595]
[1743506972402,0.684,608.16,607.81,0.27675595]
[1743506972605,0.684,608.16,607.78,0.27675595]
[1743506973606,1.604,608.28,607.78,0.27675595]
[1743506973808,0.28616774,608.27,607.78,0.27675595]
[1743506977312,0.28616774,608.27,607.77,0.32907185]
[1743506977507,0.28616774,608.27,607.78,0.27680193]
[1743506978413,2.418,608.28,607.78,0.27680193]
[1743506983817,2.418,608.28,607.79,0.27675054]
[1743506984121,2.418,608.28,607.8,0.27675054]
[1743506984319,2.418,608.28,607.78,0.27675054]
[1743506984619,2.418,608.28,607.79,0.27675054]
[1743506984818,2.418,608.28,607.8,0.27675054]
[1743506985021,2.418,608.28,607.78,0.27675054]
[1743506985514,2.418,608.28,607.78,0.60581697]
[1743506985717,2.418,608.28,607.79,0.27675054]
[1743506987121,1.681,608.28,607.79,0.27675054]
[1743506988923,1.681,608.28,607.8,0.32905561]
[1743506989316,1.681,608.28,607.81,0.27675054]
[1743506989521,1.681,608.28,607.82,0.32904478]
[1743506989716,1.681,608.28,607.83,0.27675054]
[1743506989915,0.867,608.28,607.83,0.27675054]
[1743506995121,0.867,608.28,607.84,0.27667169]
[1743506995323,0.867,608.28,607.85,0.27667169]
[1743506995519,0.867,608.28,607.86,0.27667169]
[1743506995722,0.867,608.28,607.87,0.6056894]
[1743506995920,0.867,608.28,607.88,0.60568399]
[1743506996121,0.867,608.28,607.89,0.60567858]
[1743506996316,0.867,608.28,607.9,0.60567317]
[1743506996522,0.867,608.28,607.91,0.27667169]
[1743506997119,0.873,608.3,607.91,0.27667169]
[1743506998226,0.873,608.3,607.9,0.32900148]
[1743506998425,0.873,608.3,607.91,0.27667167]
[1743507001027,0.873,608.3,607.9,0.32900148]
[1743507001226,0.873,608.3,607.91,0.27676737]
[1743507001830,0.28616303,608.29,607.91,0.27676737]
[1743507002424,0.873,608.3,607.91,0.27676737]
[1743507003026,0.28614303,608.29,607.91,0.27676737]
[1743507005728,0.28614303,608.29,607.9,0.32900148]
[1743507008428,0.873,608.3,607.9,0.32900148]
[1743507008826,1.15923129,608.3,607.9,0.32900148]
[1743507014434,0.873,608.3,607.9,0.32900148]
[1743507015240,0.873,608.3,607.91,0.27676221]
[1743507015642,0.873,608.3,607.92,0.27676918]
[1743507015938,1.15912891,608.3,607.93,0.27676918]
[1743507016143,1.15912891,608.3,607.9,0.32900148]
[1743507016144,1.15912891,608.3,607.94,0.27676918]
[1743507016338,1.15912891,608.3,607.91,0.27676918]
[1743507016539,1.15912891,608.3,607.92,0.27676918]
[1743507016741,1.15912891,608.3,607.93,0.27676918]
[1743507016942,1.15912891,608.3,607.94,0.27676918]
[1743507017140,1.15912891,608.3,607.91,0.27676918]
[1743507017341,1.15912891,608.3,607.92,0.27676918]
[1743507017537,1.15912891,608.3,607.91,0.27676918]
[1743507017738,1.15912891,608.3,607.92,0.27676918]
[1743507017945,1.15912891,608.3,607.93,0.27676918]
[1743507018143,1.15912891,608.3,607.9,0.32900148]
[1743507018144,1.15912891,608.3,607.94,0.27676918]
[1743507018343,1.15912891,608.3,607.95,0.27676918]
[1743507018545,1.15912891,608.3,607.91,0.27676918]
[1743507018739,1.15912891,608.3,607.92,0.27676918]
[1743507018943,1.15912891,608.3,607.93,0.27676918]
[1743507019144,0.28612891,608.3,607.94,0.27676918]
[1743507019340,0.28612891,608.3,607.91,0.27676918]
[1743507020446,0.712,608.4,607.91,0.27676918]
[1743507020639,0.712,608.4,607.9,0.32900148]
[1743507021845,0.28620186,608.39,607.9,0.32900148]
[1743507023441,0.712,608.4,607.91,0.27677004]
[1743507023842,0.28622423,608.38,607.91,0.27677004]
[1743507025444,0.28622423,608.38,607.9,0.32900148]
[1743507025646,0.28622423,608.38,607.91,0.27676305]
[1743507026545,1.578,608.41,607.91,0.27676305]
[1743507027248,0.28610657,608.4,607.91,0.27676305]
[1743507029652,1.578,608.41,607.91,0.27676305]
[1743507030253,0.28610186,608.4,607.91,0.27676305]
[1743507032559,1.578,608.41,607.91,0.27676305]
[1743507033255,0.28609245,608.4,607.91,0.27676305]
[1743507035567,2.448,608.41,607.91,0.27676305]
[1743507035765,0.28609245,608.4,607.91,0.27676305]
[1743507036861,0.28609245,608.4,607.92,0.27671613]
[1743507037057,0.28609245,608.4,607.93,0.27671613]
[1743507037265,0.28609245,608.4,607.94,0.27671613]
[1743507037565,0.28609245,608.4,607.95,0.27671613]
[1743507037760,0.28609245,608.4,607.96,0.27671613]
[1743507038067,0.28609245,608.4,607.97,0.27671613]
[1743507038365,0.28609245,608.4,607.98,0.27671613]
[1743507038561,2.448,608.41,607.99,0.27671613]
[1743507038762,2.448,608.41,607.91,0.27671613]
[1743507038965,2.448,608.41,608.0,0.27671613]
[1743507039166,2.448,608.41,608.01,0.27671613]
[1743507039466,2.448,608.41,607.9,0.32900148]
[1743507039668,2.448,608.41,607.91,0.27673047]
[1743507039968,0.28611362,608.4,607.91,0.27673047]
[1743507040168,0.28611362,608.4,607.92,0.27677149]
[1743507040365,0.28611362,608.4,607.93,0.27677149]
[1743507040566,0.28611362,608.4,607.91,0.27677149]
[1743507041468,2.448,608.41,607.91,0.27677149]
[1743507042865,0.28611598,608.4,607.91,0.27677149]
[1743507043373,0.28611598,608.4,607.9,0.32900148]
[1743507043671,0.28611598,608.4,607.91,0.27678176]
[1743507044272,1.34861632,608.39,607.91,0.27678176]
[1743507044467,2.448,608.41,607.81,0.27678176]
[1743507044665,1.34860614,608.4,607.82,0.27678176]
[1743507044968,1.34860614,608.39,607.81,0.27678176]
[1743507045173,2.448,608.41,607.82,0.27680614]
[1743507045469,1.34810268,608.4,607.83,0.27680614]
[1743507045669,0.28615362,608.4,607.84,0.27680614]
[1743507045877,0.28615362,608.4,607.85,0.27680614]
[1743507046168,0.28615362,608.4,607.86,0.27680614]
[1743507046369,0.28615362,608.4,607.81,0.27680614]
[1743507046571,0.28615362,608.4,607.82,0.27680614]
[1743507046774,0.28615362,608.4,607.83,0.27680156]
[1743507047074,0.28615362,608.4,607.84,0.27680156]
[1743507047277,0.28615362,608.4,607.85,0.27680156]
[1743507047469,0.28615362,608.4,607.81,0.27680156]
[1743507047667,0.28615362,608.4,607.82,0.27680156]
[1743507047871,0.28615362,608.4,607.81,0.27680156]
[1743507048069,0.28615362,608.4,607.82,0.27680156]
[1743507048271,0.28615362,608.4,607.81,0.27680156]
[1743507048474,0.28615362,608.4,607.82,0.27680156]
[1743507048670,0.782,608.39,607.81,0.27680156]
[1743507048870,0.782,608.39,607.82,0.27680156]
[1743507049069,0.782,608.39,607.81,0.27680156]
[1743507049270,1.3480881,608.38,607.8,0.696]
[1743507049471,1.3480881,608.37,607.8,0.696]
[1743507049676,1.3480881,608.36,607.8,0.696]
[1743507049872,1.3480881,608.35,607.8,0.696]
[1743507050071,1.3480881,608.34,607.8,0.696]
[1743507050272,0.782,608.39,607.8,0.696]
[1743507050273,1.3480881,608.33,607.81,0.27684664]
[1743507050475,1.3480881,608.32,607.81,0.27684664]
[1743507050676,1.34766878,608.31,607.81,0.27684664]
[1743507050876,1.34766878,608.3,607.81,0.27684664]
[1743507051077,1.34766878,608.29,607.81,0.27684664]
[1743507051375,0.28620069,608.3,607.81,0.27684664]
[1743507052675,0.28620069,608.3,607.8,0.696]
[1743507053377,0.28620069,608.3,607.81,0.27688894]
[1743507054672,0.28620069,608.3,607.8,0.696]
[1743507056474,1.081,608.31,607.8,0.696]
[1743507056875,0.28617244,608.29,607.8,0.696]
[1743507058782,0.28617244,608.29,607.81,0.27682211]
[1743507058978,0.28617244,608.29,607.8,0.696]
[1743507059579,0.8,608.3,607.81,0.27682735]
[1743507060183,0.8,608.3,607.8,0.696]
[1743507060783,0.28618068,608.29,607.8,0.696]
[1743507061283,0.28618068,608.29,607.29,0.28616421]
[1743507061582,0.28618068,608.29,607.31,0.3293211]
[1743507061882,0.28618068,608.29,607.32,0.27684868]
[1743507062177,0.796,608.28,607.32,0.27684868]
[1743507063276,0.875,608.27,607.31,0.3293211]
[1743507063477,1.16121481,608.27,607.33,0.697]
[1743507063681,0.28621481,608.27,607.35,0.32929941]
[1743507063883,0.28621481,608.27,607.36,0.27680611]
[1743507064078,0.28621481,608.27,607.37,0.27680611]
[1743507064282,0.28621481,608.27,607.38,0.27680611]
[1743507064478,0.28621481,608.27,607.39,0.27680611]
[1743507064683,0.28621481,608.27,607.37,0.666]
[1743507064684,0.28621481,608.27,607.4,0.27680611]
[1743507064884,0.28621481,608.27,607.38,0.27680611]
[1743507065079,0.28621481,608.27,607.4,0.3292723]
[1743507065277,0.28621481,608.27,607.41,0.27680611]
[1743507065477,2.47607034,609.66,607.4,0.3292723]
[1743507065478,1.34793742,609.65,607.43,0.32925604]
[1743507065676,0.32811628,609.54,607.44,0.27680611]
[1743507065881,1.64992254,609.53,607.45,0.27680611]
[1743507066082,1.64992254,609.52,607.46,0.27680611]
[1743507066384,0.32818089,609.42,607.47,0.60604047]
[1743507066584,1.34793742,609.41,607.48,0.32922894]
[1743507066778,0.32819704,609.39,607.49,0.27680891]
[1743507066980,1.64992278,609.38,607.5,0.3292181]
[1743507067182,1.64992278,609.37,607.51,0.27680891]
[1743507067483,1.64984934,609.36,607.51,0.27680891]
[1743507067681,1.64984934,609.35,607.51,0.27680891]
[1743507067880,0.32822936,609.33,607.52,0.92420726]
[1743507068079,1.64984934,609.32,607.53,0.60601076]
[1743507068285,0.32824552,609.3,607.54,0.32919643]
[1743507068486,1.64984934,609.29,607.55,0.27680891]
[1743507068681,1.64984934,609.28,607.56,0.32918559]
[1743507068884,0.32826707,609.26,607.57,0.27680891]